fUST/lending_fUST_20260111
["ID","MTS","AMOUNT","RATE_DAILY","PERIOD"]
[401331334,1768141846551,-261.28795019,0.0002,7]
[401331335,1768141846561,-52113.00553346,0.0002,2]
[401331336,1768141846572,-454.65002405,0.00020034,4]
[401331337,1768141846581,-1000.0,0.00020093,2]
[401331338,1768141846591,-1000.0,0.00020093,2]
[401331339,1768141846601,-579.0,0.00020093,2]
[401331340,1768141846612,-165.9,0.000201,2]
[401331341,1768141846623,-454.65002405,0.00020223,4]
[401331342,1768141846636,-176.49,0.000204,2]
[401331343,1768141846647,-506.7938,0.00020411,5]
[401331344,1768141846657,-221.8624,0.00020411,5]
[401331345,1768141846667,-454.65002405,0.00020412,4]
[401331346,1768141846678,-2589.040574,0.00020548,2]
[401331347,1768141846688,-301.57435521,0.00020601,4]
[401331348,1768141846701,-155.03,0.00020703,2]
[401331349,1768141846710,-361.73,0.00020789,2]
[401331350,1768141846719,-151.0,0.000209,4]
[401331351,1768141846729,-151.0,0.000209,3]
[401331352,1768141846738,-176.49,0.000209,2]
[401331353,1768141846748,-151.0,0.000209,3]
[401331354,1768141846757,-3176.86810454,0.00021026,2]
[401331355,1768141846766,-522.59653878,0.00021066,2]
[401331356,1768141846775,-556.3,0.00021365,2]
[401331357,1768141846784,-176.49,0.000214,2]
[401331358,1768141846793,-176.49,0.000219,2]
[401331359,1768141846803,-152.90727816,0.00021918,2]
[401331360,1768141846812,-1000.0,0.00022103,10]
[401331361,1768141846822,-1000.0,0.00022103,10]
[401331362,1768141846830,-1000.0,0.00022103,10]
[401331363,1768141846839,-2140.41,0.000222,14]
[401331364,1768141846847,-13367.01,0.000222,2]
[401331365,1768141846860,-176.49,0.000224,2]
[401331366,1768141846870,-556.3,0.00022928,2]
[401331367,1768141846879,-176.49,0.00023,2]
[401331368,1768141846889,-567.82123926,0.00023066,2]
[401331369,1768141846898,-176.49,0.000235,2]
[401331370,1768141846908,-2000.0,0.000238,7]
[401331371,1768141846917,-176.49,0.00024,2]
[401331372,1768141846927,-1000.0,0.00024313,10]
[401331373,1768141846937,-1000.0,0.00024313,10]
[401331374,1768141846947,-1000.0,0.00024313,10]
[401331375,1768141846957,-715.0,0.00024313,10]
[401331376,1768141846967,-556.3,0.00024492,2]
[401331377,1768141846976,-176.49,0.000245,2]
[401331378,1768141846986,-1087.80747027,0.0002452,2]
[401331379,1768141846996,-630.83049355,0.0002465,2]
[401331380,1768141847006,-500.0,0.00024658,2]
[401331381,1768141847016,-500.0,0.00024795,2]
[401331382,1768141847024,-151.0,0.000249,7]
[401331383,1768141847033,-151.0,0.000249,7]
[401331384,1768141847042,-301.393574,0.000249,7]
[401331385,1768141847051,-151.0,0.000249,7]
[401331386,1768141847060,-151.0,0.000249,7]
[401331387,1768141847070,-151.0,0.000249,7]
[401331388,1768141847079,-444.044893,0.000249,7]
[401331389,1768141847088,-151.0,0.000249,7]
[401331390,1768141847097,-444.044893,0.000249,7]
[401331391,1768141847106,-161.662681,0.000249,7]
[401331392,1768141847115,-444.044893,0.000249,7]
[401331393,1768141847124,-444.044893,0.000249,7]
[401331394,1768141847134,-155.856993,0.000249,7]
[401331395,1768141847143,-151.0,0.000249,7]
[401331396,1768141847152,-151.0,0.000249,7]
[401331397,1768141847162,-151.0,0.000249,7]
[401331398,1768141847173,-151.0,0.000249,7]
[401331399,1768141847183,-1638.845663,0.000249,7]
[401331400,1768141847194,-1638.845663,0.000249,7]
[401331401,1768141847205,-728.329358,0.000249,7]
[401331402,1768141847216,-728.329358,0.000249,7]
[401331403,1768141847227,-728.329358,0.000249,7]
[401331404,1768141847237,-728.329358,0.000249,7]
[401331405,1768141847247,-151.0,0.000249,7]
[401331406,1768141847259,-151.0,0.000249,7]
[401331407,1768141847269,-151.0,0.000249,7]
[401331408,1768141847279,-151.0,0.000249,2]
[401331409,1768141847288,-151.0,0.000249,7]
[401331410,1768141847298,-151.0,0.000249,7]
[401331411,1768141847307,-151.0,0.000249,7]
[401331412,1768141847319,-151.0,0.000249,7]
[401331413,1768141847329,-151.0,0.000249,7]
[401331414,1768141847339,-151.0,0.000249,7]
[401331415,1768141847349,-151.0,0.000249,7]
[401331416,1768141847360,-165.523557,0.000249,7]
[401331417,1768141847371,-151.0,0.000249,7]
[401331418,1768141847382,-151.0,0.000249,7]
[401331419,1768141847393,-165.523557,0.000249,7]
[401331420,1768141847404,-151.0,0.000249,7]
[401331421,1768141847414,-165.523557,0.000249,7]
[401331422,1768141847510,-151.0,0.000249,7]
[401331423,1768141847520,-179.291309,0.000249,7]
[401331424,1768141847531,-151.0,0.000249,7]
[401331425,1768141847540,-165.523557,0.000249,7]
[401331426,1768141847550,-179.291309,0.000249,7]
[401331427,1768141847559,-163.313773,0.000249,7]
[401331428,1768141847567,-151.0,0.000249,7]
[401331429,1768141847575,-700.258706,0.000249,7]
[401331430,1768141847584,-179.291309,0.000249,7]
[401331431,1768141847593,-151.0,0.000249,7]
[401331432,1768141847603,-700.258706,0.000249,7]
[401331433,1768141847612,-151.0,0.000249,7]
[401331434,1768141847621,-179.291309,0.000249,7]
[401331435,1768141847631,-700.258706,0.000249,7]
[401331436,1768141847640,-151.0,0.000249,7]
[401331437,1768141847650,-700.258706,0.000249,7]
[401331438,1768141847660,-151.0,0.000249,7]
[401331439,1768141847669,-151.0,0.000249,7]
[401331440,1768141847679,-151.0,0.000249,7]
[401331441,1768141847688,-289.520945,0.000249,7]
[401331442,1768141847697,-1390.654024,0.000249,7]
[401331443,1768141847706,-1390.654024,0.000249,7]
[401331444,1768141847716,-152.567384,0.000249,7]
[401331445,1768141847725,-1390.654024,0.000249,7]
[401331446,1768141847735,-1390.654024,0.000249,7]
[401331447,1768141847744,-400097.821185,0.000249,2]
[401331448,1768141847754,-151.292503,0.000249,7]
[401331449,1768141847763,-500.0,0.00024932,2]
[401331450,1768141847773,-176.49,0.00025,2]
[401331451,1768141847782,-2675.46555144,0.00025,2]
[401331452,1768141847791,-20757.85955183,0.00025,2]
[401331453,1768141847800,-10364.0,0.00025,2]
[401331454,1768141847810,-500.0,0.00025,2]
[401331455,1768141847820,-2074.08935166,0.00025,2]
[401331456,1768141847830,-759.6161654,0.00025,2]
[401331457,1768141847839,-613.04593973,0.00025066,2]
[401331458,1768141847850,-500.0,0.00025069,2]
[401331459,1768141847863,-1000.74,0.000251,7]
[401331460,1768141847874,-165.9,0.000251,2]
[401331461,1768141847883,-250.0,0.00025205,2]
[401331462,1768141847892,-500.0,0.00025206,2]
[401331463,1768141847902,-500.0,0.00025343,2]
[401331464,1768141847911,-500.0,0.0002548,2]
[401331465,1768141847920,-176.49,0.000255,2]
[401331466,1768141847930,-1000.0,0.000255,2]
[401331467,1768141847940,-255.99235489,0.00025617,2]
[401331468,1768141847949,-311.77529652,0.00025699,14]
[401331469,1768141847958,-350.0,0.00025753,2]
[401331470,1768141847967,-2026.41544348,0.0002587,2]
[401331471,1768141847976,-176.49,0.00026,2]
[401331472,1768141847986,-70607.87391328,0.00026,30]
[401331473,1768141847995,-556.3,0.00026055,2]
[401331474,1768141848004,-450.0,0.00026301,2]
[401331475,1768141848014,-176.49,0.000265,2]
[401331476,1768141848023,-13367.01,0.000266,2]
[401331477,1768141848033,-181.17141011,0.00026725,2]
[401331478,1768141848044,-1000.0,0.00026744,30]
[401331479,1768141848054,-1000.0,0.00026744,30]
[401331480,1768141848063,-1000.0,0.00026744,30]
[401331481,1768141848072,-550.0,0.00026849,2]
[401331482,1768141848082,-2140.41,0.000269,14]
[401331483,1768141848091,-3176.86810454,0.00026901,2]
[401331484,1768141848100,-1087.80747027,0.00026947,2]
[401331485,1768141848110,-658.2706402,0.00027066,2]
[401331486,1768141848122,-176.49,0.000271,2]
[401331487,1768141848131,-175.0,0.00027342,24]
[401331488,1768141848141,-394.08412848,0.0002739,7]
[401331489,1768141848152,-702.10519323,0.00027397,5]
[401331490,1768141848163,-300.0,0.00027397,2]
[401331491,1768141848174,-300.0,0.00027397,2]
[401331492,1768141848184,-300.0,0.00027397,2]
[401331493,1768141848194,-300.0,0.00027397,2]
[401331494,1768141848205,-176.49,0.000276,2]
[401331495,1768141848215,-556.3,0.00027619,2]
[401331496,1768141848227,-15330.50011171,0.00028,2]
[401331497,1768141848237,-520.4204079,0.00028,2]
[401331498,1768141848247,-5000.0,0.00028037,2]
[401331499,1768141848257,-176.49,0.000281,2]
[401331500,1768141848266,-176.49,0.000286,2]
[401331501,1768141848275,-429431.6619482,0.0002876,14]
[401331502,1768141848285,-155.5739919,0.00028818,5]
[401331503,1768141848294,-156.0,0.00028986,32]
[401331504,1768141848303,-7000.0,0.00029,3]
[401331505,1768141848313,-2412.5313746,0.00029,10]
[401331506,1768141848323,-206.626,0.00029014,21]
[401331507,1768141848334,-13382.93313115,0.0002902,2]
[401331508,1768141848344,-156.419626,0.0002902,7]
[401331509,1768141848354,-151.0,0.0002902,7]
[401331510,1768141848365,-151.0,0.0002902,7]
[401331511,1768141848374,-151.0,0.0002902,7]
[401331512,1768141848383,-151.0,0.0002902,7]
[401331513,1768141848392,-151.0,0.0002902,7]
[401331514,1768141848401,-151.0,0.0002902,7]
[401331515,1768141848411,-151.0,0.0002902,7]
[401331516,1768141848420,-151.0,0.0002902,7]
[401331517,1768141848430,-151.0,0.0002902,7]
[401331518,1768141848440,-151.0,0.0002902,7]
[401331519,1768141848450,-151.0,0.0002902,7]
[401331520,1768141848460,-703.49534067,0.00029066,2]
[401331521,1768141848470,-176.49,0.000291,2]
[401331522,1768141848481,-556.3,0.00029182,3]
[401331523,1768141848491,-1087.80747027,0.00029373,2]
[401331524,1768141848501,-2665.91589527,0.00029513,2]
[401331525,1768141848511,-176.49,0.000296,2]
[401331526,1768141848521,-155.57399191,0.00029709,5]
[401331527,1768141848530,-5008.97139185,0.0003,10]
[401331528,1768141848540,-89030.96900453,0.0003,30]
[401331529,1768141848549,-258.50979211,0.0003,10]
[401331530,1768141848559,-151.0,0.0003,7]
[401331531,1768141848567,-300.0,0.00030137,5]
[401331532,1768141848575,-551.07,0.00030137,120]
[401331533,1768141848583,-2099.00986107,0.0003014,120]
[401331534,1768141848592,-5000.0,0.00030203,2]
[401331535,1768141848601,-1085.0,0.00030214,2]
[401331536,1768141848610,-1443.0,0.00030301,2]
[401331537,1768141848619,-1085.0,0.0003053,7]
[401331538,1768141848629,-155.57399191,0.00030628,10]
[401331539,1768141848638,-164.0,0.0003063,41]
[401331540,1768141848647,-556.3,0.00030746,4]
[401331541,1768141848656,-1443.0,0.00030794,2]
[401331542,1768141848665,-151.0,0.00030794,31]
[401331543,1768141848674,-151.0,0.00030794,31]
[401331544,1768141848683,-151.0,0.00030794,31]
[401331545,1768141848691,-169.882376,0.00030794,31]
[401331546,1768141848700,-151.0,0.00030794,31]
[401331547,1768141848709,-151.0,0.00030794,31]
[401331548,1768141848718,-151.0,0.00030794,31]
[401331549,1768141848727,-151.0,0.00030794,31]
[401331550,1768141848736,-161.096358,0.00030794,31]
[401331551,1768141848745,-151.0,0.000308,16]
[401331552,1768141848754,-151.0,0.000308,20]
[401331553,1768141848763,-151.0,0.000308,16]
[401331554,1768141848772,-500.0,0.0003088,2]
[401331555,1768141848782,-151.0,0.0003089,7]
[401331556,1768141848791,-13367.01,0.000309,2]
[401331557,1768141848800,-377.2725358,0.00030959,30]
[401331558,1768141848809,-377.2725358,0.00030959,30]
[401331559,1768141848819,-376.1363302,0.00030959,30]
[401331560,1768141848828,-4807.0,0.00030968,2]
[401331561,1768141848838,-4808.0,0.00030977,2]
[401331562,1768141848847,-556.64090381,0.00031,30]
[401331563,1768141848859,-151.0,0.00031036,2]
[401331564,1768141848868,-30000.0,0.00031036,2]
[401331565,1768141848877,-151.0,0.00031036,2]
[401331566,1768141848886,-151.0,0.00031036,2]
[401331567,1768141848896,-151.0,0.00031036,2]
[401331568,1768141848905,-151.0,0.00031036,2]
[401331569,1768141848913,-151.0,0.00031036,2]
[401331570,1768141848922,-151.0,0.00031036,2]
[401331571,1768141848931,-151.0,0.00031036,2]
[401331572,1768141848940,-151.0,0.00031036,2]
[401331573,1768141848950,-151.0,0.00031036,2]
[401331574,1768141848959,-151.0,0.00031036,2]
[401331575,1768141848970,-151.0,0.00031036,2]
[401331576,1768141848980,-151.0,0.00031036,2]
[401331577,1768141848989,-151.0,0.00031036,2]
[401331578,1768141848999,-151.0,0.00031036,2]
[401331579,1768141849009,-151.0,0.00031036,2]
[401331580,1768141849018,-151.0,0.00031036,2]
[401331581,1768141849027,-151.0,0.00031036,2]
[401331582,1768141849037,-151.0,0.00031036,2]
[401331583,1768141849046,-151.0,0.00031036,2]
[401331584,1768141849055,-151.0,0.00031036,2]
[401331585,1768141849064,-151.0,0.00031036,2]
[401331586,1768141849073,-151.0,0.00031036,2]
[401331587,1768141849083,-151.0,0.00031036,2]
[401331588,1768141849092,-151.0,0.00031036,2]
[401331589,1768141849175,-151.0,0.00031036,2]
[401331590,1768141849185,-151.0,0.00031036,2]
[401331591,1768141849195,-151.0,0.00031036,2]
[401331592,1768141849204,-151.0,0.00031036,2]
[401331593,1768141849214,-151.0,0.00031036,2]
[401331594,1768141849223,-151.0,0.00031036,2]
[401331595,1768141849233,-151.0,0.00031036,2]
[401331596,1768141849242,-151.0,0.00031036,2]
[401331597,1768141849252,-151.0,0.00031036,2]
[401331598,1768141849262,-151.0,0.00031036,2]
[401331599,1768141849274,-151.0,0.00031036,2]
[401331600,1768141849285,-151.0,0.00031036,2]
[401331601,1768141849295,-151.0,0.00031036,2]
[401331602,1768141849306,-151.0,0.00031036,2]
[401331603,1768141849316,-151.0,0.00031036,2]
[401331604,1768141849327,-151.0,0.00031036,2]
[401331605,1768141849336,-156.587,0.00031036,2]
[401331606,1768141849345,-152.09143049,0.00031036,2]
[401331607,1768141849354,-748.72004114,0.00031066,2]
[401331608,1768141849364,-1112.0,0.00031099,2]
[401331609,1768141849373,-2140.41,0.000313,14]
[401331610,1768141849383,-225.859576,0.00031417,31]
[401331611,1768141849392,-151.0,0.00031417,31]
[401331612,1768141849400,-151.0,0.00031417,31]
[401331613,1768141849410,-172.824008,0.00031417,31]
[401331614,1768141849419,-151.0,0.00031417,31]
[401331615,1768141849428,-500.0,0.000315,7]
[401331616,1768141849438,-155.5739919,0.00031535,10]
[401331617,1768141849448,-307.20348016,0.00031584,2]
[401331618,1768141849457,-536.72987461,0.00031613,7]
[401331619,1768141849467,-1591.45377303,0.0003169,2]
[401331620,1768141849477,-2618.37767806,0.00031742,2]
[401331621,1768141849487,-800.0,0.00031771,2]
[401331622,1768141849498,-151.0,0.0003178,7]
[401331623,1768141849509,-1087.80747027,0.00031799,2]
[401331624,1768141849520,-1002.20117456,0.0003185,15]
[401331625,1768141849530,-2618.37767806,0.00031935,2]
[401331626,1768141849542,-800.0,0.0003196,2]
[401331627,1768141849553,-588120.82157124,0.00031998,2]
[401331628,1768141849563,-168.72845665,0.00032,120]
[401331629,1768141849574,-162.09527137,0.00032,120]
[401331630,1768141849583,-800.0,0.00032029,2]
[401331631,1768141849593,-629.16420479,0.0003203,2]
[401331632,1768141849602,-500.0,0.00032091,2]
[401331633,1768141849613,-800.0,0.00032118,2]
[401331634,1768141849623,-800.0,0.00032166,2]
[401331635,1768141849632,-800.0,0.0003218,2]
[401331636,1768141849642,-791.97244827,0.0003223,7]
[401331637,1768141849653,-468.62769342,0.0003223,7]
[401331638,1768141849662,-1874.51077367,0.0003223,7]
[401331639,1768141849674,-6852.43934569,0.0003223,7]
[401331640,1768141849684,-3167.88979306,0.0003223,7]
[401331641,1768141849692,-1400.46117797,0.0003223,7]
[401331642,1768141849700,-4217.64924076,0.0003223,7]
[401331643,1768141849708,-7127.75203439,0.0003223,7]
[401331644,1768141849717,-7498.04309468,0.0003223,7]
[401331645,1768141849727,-2618.37767806,0.00032234,2]
[401331646,1768141849735,-1095.40809829,0.00032298,5]
[401331647,1768141849744,-250.0,0.00032298,5]
[401331648,1768141849752,-151.0,0.00032298,5]
[401331649,1768141849760,-250.0,0.00032298,5]
[401331650,1768141849768,-151.0,0.00032298,5]
[401331651,1768141849777,-445.202766,0.00032298,5]
[401331652,1768141849786,-250.0,0.00032298,5]
[401331653,1768141849799,-151.0,0.00032298,5]
[401331654,1768141849808,-151.0,0.00032298,5]
[401331655,1768141849818,-461.67526834,0.00032298,5]
[401331656,1768141849827,-250.15738416,0.00032298,5]
[401331657,1768141849837,-478.75725327,0.00032298,5]
[401331658,1768141849847,-496.47127164,0.00032298,5]
[401331659,1768141849861,-514.84070869,0.00032298,5]
[401331660,1768141849872,-153.90472729,0.00032298,5]
[401331661,1768141849882,-533.88981491,0.00032298,5]
[401331662,1768141849894,-553.64373807,0.00032298,5]
[401331663,1768141849905,-311.85701,0.00032298,5]
[401331664,1768141849918,-574.12855637,0.00032298,5]
[401331665,1768141849936,-323.39571937,0.00032298,5]
[401331666,1768141849954,-390.03059732,0.00032298,5]
[401331667,1768141849967,-595.37131296,0.00032298,5]
[401331668,1768141849983,-617.40005154,0.00032298,5]
[401331669,1768141849998,-250.0,0.00032298,5]
[401331670,1768141850012,-2150.738,0.00032298,5]
[401331671,1768141850027,-640.24385345,0.00032298,5]
[401331672,1768141850042,-2230.315306,0.00032298,5]
[401331673,1768141850057,-617.03508929,0.00032298,5]
[401331674,1768141850073,-2312.83697232,0.00032298,5]
[401331675,1768141850087,-151.0,0.00032298,5]
[401331676,1768141850101,-2398.4119403,0.00032298,5]
[401331677,1768141850116,-151.0,0.00032298,5]
[401331678,1768141850130,-2487.15318209,0.00032298,5]
[401331679,1768141850143,-151.0,0.00032298,5]
[401331680,1768141850155,-296.59935167,0.00032298,5]
[401331681,1768141850167,-2579.17784983,0.00032298,5]
[401331682,1768141850182,-256.83787609,0.00032298,5]
[401331683,1768141850196,-250.0,0.00032298,5]
[401331684,1768141850211,-271.40103972,0.00032298,5]
[401331685,1768141850226,-151.0,0.00032298,5]
[401331686,1768141850242,-151.0,0.00032298,5]
[401331687,1768141850253,-151.0,0.00032298,5]
[401331688,1768141850263,-151.0,0.00032298,5]
[401331689,1768141850276,-151.0,0.00032298,5]
[401331690,1768141850291,-151.0,0.00032298,5]
[401331691,1768141850301,-151.0,0.00032298,5]
[401331692,1768141850312,-151.0,0.00032298,5]
[401331693,1768141850326,-151.0,0.00032298,5]
[401331694,1768141850339,-151.0,0.00032298,5]
[401331695,1768141850350,-151.0,0.00032298,5]
[401331696,1768141850363,-151.0,0.00032298,5]
[401331697,1768141850375,-151.0,0.00032298,5]
[401331698,1768141850387,-151.0,0.00032298,5]
[401331699,1768141850400,-151.0,0.00032298,5]
[401331700,1768141850413,-556.3,0.00032309,5]
[401331701,1768141850426,-800.0,0.00032343,2]
[401331702,1768141850443,-5000.0,0.0003237,2]
[401331703,1768141850457,-2171.0,0.000324,120]
[401331704,1768141850471,-155.57399191,0.00032511,10]
[401331705,1768141850483,-428.38509702,0.00032524,2]
[401331706,1768141850495,-1713.54038807,0.00032524,2]
[401331707,1768141850506,-3855.46587315,0.00032524,2]
[401331708,1768141850521,-6854.16155227,0.00032524,2]
[401331709,1768141850536,-10875.62814963,0.00032524,2]
[401331710,1768141850549,-328.29687314,0.00032524,2]
[401331711,1768141850563,-1313.18749254,0.00032524,2]
[401331712,1768141850577,-2954.67185822,0.00032524,2]
[401331713,1768141850589,-5252.74997018,0.00032524,2]
[401331714,1768141850602,-8207.4218284,0.00032524,2]
[401331715,1768141850614,-4329.30484063,0.00032524,2]
[401331716,1768141850628,-8281.82364728,0.00032524,2]
[401331717,1768141850640,-495.9966672,0.00032524,2]
[401331718,1768141850653,-1983.98666879,0.00032524,2]
[401331719,1768141850667,-4463.97000478,0.00032524,2]
[401331720,1768141850679,-10698.91779799,0.00032524,2]
[401331721,1768141850691,-11806.86874546,0.00032524,2]
[401331722,1768141850703,-5601.84471188,0.00032524,7]
[401331723,1768141850715,-2618.37767808,0.00032542,2]
[401331724,1768141850728,-800.0,0.00032579,2]
[401331725,1768141850740,-932.46362,0.000326,10]
[401331726,1768141850752,-7928.01072849,0.00032617,2]
[401331727,1768141850764,-1367.6179437,0.00032648,2]
[401331728,1768141850775,-1758.3659278,0.00032648,2]
[401331729,1768141850788,-2065.1310659,0.00032648,2]
[401331730,1768141850800,-39757.6893563,0.00032651,2]
[401331731,1768141850811,-151.61039102,0.0003267,7]
[401331732,1768141850823,-151.0,0.0003267,7]
[401331733,1768141850836,-152.0,0.0003267,7]
[401331734,1768141850848,-154.66138278,0.0003267,7]
[401331735,1768141850863,-166.0,0.0003267,7]
[401331736,1768141850875,-152.0,0.0003267,7]
[401331737,1768141850887,-151.0,0.0003267,7]
[401331738,1768141850900,-152.0,0.0003267,7]
[401331739,1768141850912,-151.0,0.0003267,7]
[401331740,1768141850924,-152.0,0.0003267,7]
[401331741,1768141850936,-151.0,0.0003267,7]
[401331742,1768141850949,-152.0,0.0003267,7]
[401331743,1768141851082,-152.0,0.0003267,7]
[401331744,1768141851091,-347.0,0.0003267,7]
[401331745,1768141851100,-152.0,0.0003267,7]
[401331746,1768141851109,-347.0,0.0003267,7]
[401331747,1768141851118,-166.0,0.0003267,7]
[401331748,1768141851127,-347.0,0.0003267,7]
[401331749,1768141851136,-166.0,0.0003267,7]
[401331750,1768141851145,-152.0,0.0003267,7]
[401331751,1768141851154,-347.0,0.0003267,7]
[401331752,1768141851163,-166.0,0.0003267,7]
[401331753,1768141851172,-284.0,0.0003267,7]
[401331754,1768141851180,-347.0,0.0003267,7]
[401331755,1768141851189,-166.0,0.0003267,7]
[401331756,1768141851198,-151.0,0.0003267,7]
[401331757,1768141851207,-347.0,0.0003267,7]
[401331758,1768141851216,-166.0,0.0003267,7]
[401331759,1768141851225,-347.0,0.0003267,7]
[401331760,1768141851234,-151.0,0.0003267,7]
[401331761,1768141851243,-172.0,0.0003267,7]
[401331762,1768141851252,-347.0,0.0003267,7]
[401331763,1768141851261,-151.0,0.0003267,7]
[401331764,1768141851270,-347.0,0.0003267,7]
[401331765,1768141851280,-347.0,0.0003267,7]
[401331766,1768141851289,-151.0,0.0003267,7]
[401331767,1768141851298,-347.0,0.0003267,7]
[401331768,1768141851307,-151.0,0.0003267,7]
[401331769,1768141851317,-347.0,0.0003267,7]
[401331770,1768141851326,-151.0,0.0003267,7]
[401331771,1768141851335,-347.0,0.0003267,7]
[401331772,1768141851344,-151.0,0.0003267,7]
[401331773,1768141851353,-347.0,0.0003267,7]
[401331774,1768141851362,-151.0,0.0003267,7]
[401331775,1768141851371,-347.0,0.0003267,7]
[401331776,1768141851380,-151.0,0.0003267,7]
[401331777,1768141851389,-347.0,0.0003267,7]
[401331778,1768141851398,-194.94813958,0.0003267,7]
[401331779,1768141851406,-151.0,0.0003267,7]
[401331780,1768141851416,-347.0,0.0003267,7]
[401331781,1768141851426,-151.0,0.0003267,7]
[401331782,1768141851436,-347.0,0.0003267,7]
[401331783,1768141851446,-151.0,0.0003267,7]
[401331784,1768141851456,-347.0,0.0003267,7]
[401331785,1768141851466,-151.0,0.0003267,7]
[401331786,1768141851477,-347.0,0.0003267,7]
[401331787,1768141851485,-151.0,0.0003267,7]
[401331788,1768141851496,-347.0,0.0003267,7]
[401331789,1768141851508,-347.0,0.0003267,7]
[401331790,1768141851518,-151.0,0.0003267,7]
[401331791,1768141851527,-151.0,0.0003267,7]
[401331792,1768141851537,-347.0,0.0003267,7]
[401331793,1768141851546,-151.0,0.0003267,7]
[401331794,1768141851555,-347.0,0.0003267,7]
[401331795,1768141851564,-347.0,0.0003267,7]
[401331796,1768141851574,-151.0,0.0003267,7]
[401331797,1768141851583,-347.0,0.0003267,7]
[401331798,1768141851592,-151.0,0.0003267,7]
[401331799,1768141851602,-347.0,0.0003267,7]
[401331800,1768141851611,-151.0,0.0003267,7]
[401331801,1768141851620,-347.0,0.0003267,7]
[401331802,1768141851629,-347.0,0.0003267,7]
[401331803,1768141851638,-156.67760442,0.0003267,7]
[401331804,1768141851648,-347.0,0.0003267,7]
[401331805,1768141851659,-347.0,0.0003267,7]
[401331806,1768141851669,-347.0,0.0003267,7]
[401331807,1768141851681,-226.84929612,0.0003267,7]
[401331808,1768141851691,-336.0,0.0003267,7]
[401331809,1768141851701,-336.0,0.0003267,7]
[401331810,1768141851713,-336.0,0.0003267,7]
[401331811,1768141851723,-336.0,0.0003267,7]
[401331812,1768141851735,-336.0,0.0003267,7]
[401331813,1768141851744,-336.0,0.0003267,7]
[401331814,1768141851753,-336.0,0.0003267,7]
[401331815,1768141851762,-336.0,0.0003267,7]
[401331816,1768141851772,-336.0,0.0003267,7]
[401331817,1768141851782,-336.0,0.0003267,7]
[401331818,1768141851792,-336.0,0.0003267,7]
[401331819,1768141851802,-336.0,0.0003267,7]
[401331820,1768141851811,-336.0,0.0003267,7]
[401331821,1768141851821,-336.0,0.0003267,7]
[401331822,1768141851831,-336.0,0.0003267,7]
[401331823,1768141851839,-336.0,0.0003267,7]
[401331824,1768141851850,-336.0,0.0003267,7]
[401331825,1768141851864,-458.79996491,0.0003267,7]
[401331826,1768141851875,-37054.13362627,0.0003267,2]
[401331827,1768141852014,-1041.66666667,0.0001849,2]
[401331828,1768141852024,-151.0,0.00032298,5]
[401331829,1768141852035,-154.07167593,0.00032298,5]
[401331830,1768141852045,-62349.65203829,0.0003267,2]
[401331831,1768141852185,-303.10001603,0.000189,2]
[401331832,1768141852194,-303.10001603,0.00019089,2]
[401331833,1768141852204,-303.10001603,0.00019278,2]